[Event "Goteborg Open 2024"]
[Site "Goteborgs Schackcentrum, Vegatan 20, Gothenburg, Sweden"]
[Date "2024.08.02"]
[Round "1.21"]
[White "Eklund, Rickard"]
[Black "Mohammed, Safian Haj"]
[Result "1-0"]
[TimeControl "15 minutes + 5 seconds per move from move one (Round 1 - 4) / 90 minutes + 30 seconds per move from move one (Round 5 - 8)"]
[WhiteFideId "1789040"]
[BlackFideId "1729276"]
[WhiteElo "1595"]
[BlackElo "1890"]

1. e4 {[%clk 00:15:05]} {[%emt 00:07:22]} c5 {[%clk 00:15:04]} {[%emt
00:00:09]} 2. Nf3 {[%clk 00:15:04]} {[%emt 00:00:06]} d6 {[%clk 00:15:00]}
{[%emt 00:00:09]} 3. d4 {[%clk 00:15:05]} {[%emt 00:00:04]} cxd4 {[%clk
00:15:03]} {[%emt 00:00:02]} 4. Nxd4 {[%clk 00:15:09]} Nf6 {[%clk 00:15:06]}
{[%emt 00:00:02]} 5. Nc3 {[%clk 00:15:12]} {[%emt 00:00:02]} g6 {[%clk
00:15:09]} {[%emt 00:00:02]} 6. Bc4 {[%clk 00:14:45]} {[%emt 00:00:32]} Bg7
{[%clk 00:15:05]} {[%emt 00:00:08]} 7. O-O {[%clk 00:14:27]} {[%emt 00:00:24]}
O-O {[%clk 00:15:05]} {[%emt 00:00:06]} 8. Be3 {[%clk 00:13:58]} {[%emt
00:00:32]} Nc6 {[%clk 00:14:49]} {[%emt 00:00:23]} 9. f3 {[%clk 00:13:13]}
{[%emt 00:00:49]} Bd7 {[%clk 00:12:45]} {[%emt 00:02:10]} 10. Qd2 {[%clk
00:12:43]} {[%emt 00:00:34]} Rc8 {[%clk 00:12:34]} {[%emt 00:00:17]} 11. Bb3
{[%clk 00:12:45]} {[%emt 00:00:03]} Ne5 {[%clk 00:12:09]} {[%emt 00:00:29]} 12.
Kh1 {[%clk 00:11:57]} {[%emt 00:00:52]} Nc4 {[%clk 00:12:07]} {[%emt 00:00:09]}
13. Bxc4 {[%clk 00:12:00]} {[%emt 00:00:01]} Rxc4 {[%clk 00:12:09]} {[%emt
00:00:03]} 14. Rad1 {[%clk 00:10:07]} {[%emt 00:01:57]} a6 {[%clk 00:12:06]}
{[%emt 00:00:09]} 15. b3 {[%clk 00:09:06]} {[%emt 00:01:06]} Rc8 {[%clk
00:11:52]} {[%emt 00:00:19]} 16. Nd5 {[%clk 00:08:57]} {[%emt 00:00:14]} Nxd5
{[%clk 00:11:38]} {[%emt 00:00:20]} 17. exd5 {[%clk 00:09:00]} {[%emt
00:00:01]} b5 {[%clk 00:09:03]} {[%emt 00:02:41]} 18. Bg5 {[%clk 00:07:52]}
{[%emt 00:01:12]} Re8 {[%clk 00:08:38]} {[%emt 00:00:30]} 19. Rfe1 {[%clk
00:07:47]} {[%emt 00:00:10]} Rc5 {[%clk 00:07:06]} {[%emt 00:01:37]} 20. Ne2
{[%clk 00:06:02]} {[%emt 00:01:50]} Qc7 {[%clk 00:06:01]} {[%emt 00:01:11]} 21.
c3 {[%clk 00:03:03]} {[%emt 00:03:03]} Bxc3 {[%clk 00:04:38]} {[%emt 00:01:28]}
22. Nxc3 {[%clk 00:03:06]} {[%emt 00:00:02]} Rxc3 {[%clk 00:04:41]} {[%emt
00:00:02]} 23. Rxe7 {[%clk 00:01:54]} {[%emt 00:01:16]} Rxe7 {[%clk 00:04:39]}
{[%emt 00:00:07]} 24. Bxe7 {[%clk 00:01:58]} {[%emt 00:00:01]} Rc2 {[%clk
00:02:06]} {[%emt 00:02:39]} 25. Qh6 {[%clk 00:01:58]} {[%emt 00:00:03]} Qb8
{[%clk 00:01:41]} {[%emt 00:00:30]} 26. Bf6 {[%clk 00:01:18]} {[%emt 00:00:45]}
Qf8 {[%clk 00:01:45]} {[%emt 00:00:01]} 27. Qg5 {[%clk 00:01:19]} {[%emt
00:00:05]} Rxa2 {[%clk 00:01:28]} {[%emt 00:00:21]} 28. h4 {[%clk 00:01:13]}
{[%emt 00:00:11]} h6 {[%clk 00:01:25]} {[%emt 00:00:08]} 29. Qf4 {[%clk
00:01:15]} {[%emt 00:00:03]} Qc8 {[%clk 00:00:55]} {[%emt 00:00:35]} 30. Qxh6
{[%clk 00:01:15]} {[%emt 00:00:05]} Qf8 {[%clk 00:00:59]} {[%emt 00:00:01]} 31.
Qf4 {[%clk 00:01:18]} {[%emt 00:00:02]} Kh7 {[%clk 00:00:53]} {[%emt 00:00:12]}
32. Qg5 {[%clk 00:01:16]} {[%emt 00:00:08]} Qc8 {[%clk 00:00:54]} {[%emt
00:00:03]} 33. Re1 {[%clk 00:01:17]} {[%emt 00:00:04]} Qc2 {[%clk 00:00:57]}
{[%emt 00:00:02]} 34. Re7 {[%clk 00:01:17]} {[%emt 00:00:05]} Kg8 {[%clk
00:00:14]} {[%emt 00:00:47]} 35. Rxd7 {[%clk 00:01:15]} {[%emt 00:00:08]} Qd1+
{[%clk 00:00:09]} {[%emt 00:00:09]} 36. Kh2 {[%clk 00:01:18]} {[%emt 00:00:03]}
Kf8 {[%clk 00:15:05]} 1-0

[Event "Goteborg Open 2024"]
[Site "Goteborgs Schackcentrum, Vegatan 20, Gothenburg, Sweden"]
[Date "2024.08.02"]
[Round "2.1"]
[White "Rasti, Arvin"]
[Black "Fransson, Lennart"]
[Result "1-0"]
[TimeControl "15 minutes + 5 seconds per move from move one (Round 1 - 4) / 90 minutes + 30 seconds per move from move one (Round 5 - 8)"]
[WhiteTitle "FM"]
[WhiteFideId "1741160"]
[BlackFideId "1706756"]
[WhiteElo "2195"]
[BlackElo "1926"]

1. Nf3 {[%clk 00:15:07]} {[%emt 00:00:02]} Nf6 {[%clk 00:14:51]} {[%emt
00:00:20]} 2. g3 {[%clk 00:15:11]} g6 {[%clk 00:14:53]} {[%emt 00:00:03]} 3.
Bg2 {[%clk 00:15:14]} {[%emt 00:00:03]} Bg7 {[%clk 00:14:57]} {[%emt 00:00:01]}
4. O-O {[%clk 00:15:17]} {[%emt 00:00:01]} O-O {[%clk 00:15:00]} {[%emt
00:00:02]} 5. d4 {[%clk 00:15:09]} {[%emt 00:00:12]} c5 {[%clk 00:15:02]}
{[%emt 00:00:04]} 6. c4 {[%clk 00:14:25]} {[%emt 00:00:49]} Na6 {[%clk
00:14:43]} {[%emt 00:00:25]} 7. Nc3 {[%clk 00:14:08]} {[%emt 00:00:21]} d6
{[%clk 00:14:44]} {[%emt 00:00:04]} 8. d5 {[%clk 00:13:51]} {[%emt 00:00:23]}
Nc7 {[%clk 00:14:41]} {[%emt 00:00:08]} 9. e4 {[%clk 00:13:46]} {[%emt
00:00:10]} Rb8 {[%clk 00:14:42]} {[%emt 00:00:03]} 10. a4 {[%clk 00:13:32]}
{[%emt 00:00:19]} Bd7 {[%clk 00:14:36]} {[%emt 00:00:11]} 11. h3 {[%clk
00:13:17]} {[%emt 00:00:20]} b6 {[%clk 00:14:36]} {[%emt 00:00:06]} 12. Re1
{[%clk 00:13:14]} {[%emt 00:00:09]} a6 {[%clk 00:14:25]} {[%emt 00:00:15]} 13.
e5 {[%clk 00:13:06]} {[%emt 00:00:13]} Nfe8 {[%clk 00:14:14]} {[%emt 00:00:15]}
14. Bf4 {[%clk 00:12:39]} {[%emt 00:00:32]} b5 {[%clk 00:14:11]} {[%emt
00:00:09]} 15. axb5 {[%clk 00:12:15]} {[%emt 00:00:28]} axb5 {[%clk 00:14:13]}
{[%emt 00:00:02]} 16. Ne4 {[%clk 00:11:36]} {[%emt 00:00:45]} Bf5 {[%clk
00:13:59]} {[%emt 00:00:19]} 17. Bg5 {[%clk 00:10:56]} {[%emt 00:00:45]} Bxe4
{[%clk 00:13:50]} {[%emt 00:00:14]} 18. Rxe4 {[%clk 00:11:00]} {[%emt
00:00:02]} dxe5 {[%clk 00:13:40]} {[%emt 00:00:15]} 19. cxb5 {[%clk 00:09:39]}
{[%emt 00:01:27]} f6 {[%clk 00:13:22]} {[%emt 00:00:21]} 20. Be3 {[%clk
00:09:35]} {[%emt 00:00:10]} Nd6 {[%clk 00:12:56]} {[%emt 00:00:30]} 21. Rea4
{[%clk 00:09:32]} {[%emt 00:00:08]} Rxb5 {[%clk 00:12:49]} {[%emt 00:00:12]} 22.
Bf1 {[%clk 00:09:24]} {[%emt 00:00:13]} Rxb2 {[%clk 00:12:00]} {[%emt
00:00:54]} 23. Bxc5 {[%clk 00:09:28]} {[%emt 00:00:01]} Qb8 {[%clk 00:11:22]}
{[%emt 00:00:44]} 24. Ba3 {[%clk 00:09:13]} {[%emt 00:00:19]} Rb7 {[%clk
00:11:06]} {[%emt 00:00:20]} 25. Rc1 {[%clk 00:08:39]} {[%emt 00:00:41]} Bh6
{[%clk 00:10:53]} {[%emt 00:00:17]} 26. Ra1 {[%clk 00:08:26]} {[%emt 00:00:18]}
Ncb5 {[%clk 00:10:18]} {[%emt 00:00:42]} 27. Bb2 {[%clk 00:07:41]} {[%emt
00:00:49]} Rc8 {[%clk 00:09:51]} {[%emt 00:00:30]} 28. h4 {[%clk 00:07:44]}
{[%emt 00:00:03]} Ra7 {[%clk 00:08:48]} {[%emt 00:01:08]} 29. h5 {[%clk
00:07:34]} {[%emt 00:00:16]} Rxa4 {[%clk 00:08:36]} {[%emt 00:00:17]} 30. Qxa4
{[%clk 00:07:26]} {[%emt 00:00:13]} Nc3 {[%clk 00:08:09]} {[%emt 00:00:31]} 31.
Bxc3 {[%clk 00:07:23]} {[%emt 00:00:09]} Rxc3 {[%clk 00:08:12]} {[%emt
00:00:01]} 32. Nh4 {[%clk 00:06:30]} {[%emt 00:00:57]} Kf7 {[%clk 00:06:33]}
{[%emt 00:01:43]} 33. hxg6+ {[%clk 00:06:17]} {[%emt 00:00:19]} hxg6 {[%clk
00:05:29]} {[%emt 00:01:09]} 34. Qg4 {[%clk 00:06:20]} {[%emt 00:00:03]} Bg5
{[%clk 00:04:21]} {[%emt 00:01:12]} 35. Qe6+ {[%clk 00:06:17]} {[%emt
00:00:08]} Kg7 {[%clk 00:04:12]} {[%emt 00:00:14]} 36. Qxe7+ {[%clk 00:06:19]}
{[%emt 00:00:03]} Nf7 {[%clk 00:04:16]} {[%emt 00:00:01]} 37. Ra7 {[%clk
00:05:36]} {[%emt 00:00:49]} Qf8 {[%clk 00:03:53]} {[%emt 00:00:27]} 38. Nxg6
{[%clk 00:05:07]} {[%emt 00:00:35]} Qxe7 {[%clk 00:03:45]} {[%emt 00:00:12]} 39.
Nxe7 {[%clk 00:05:10]} {[%emt 00:00:03]} Rxg3+ {[%clk 00:03:39]} {[%emt
00:00:11]} 40. Kh1 {[%clk 00:04:56]} {[%emt 00:00:18]} Rg4 {[%clk 00:03:19]}
{[%emt 00:00:25]} 41. Bh3 {[%clk 00:04:47]} {[%emt 00:00:15]} Rb4 {[%clk
00:02:33]} {[%emt 00:00:50]} 42. Be6 {[%clk 00:04:43]} {[%emt 00:00:09]} Rb1+
{[%clk 00:02:25]} {[%emt 00:00:13]} 43. Kg2 {[%clk 00:04:47]} {[%emt 00:00:01]}
Nd8 {[%clk 00:02:02]} {[%emt 00:00:28]} 44. Nc6+ {[%clk 00:04:45]} {[%emt
00:00:08]} Kg6 {[%clk 00:02:01]} {[%emt 00:00:06]} 45. Nxd8 {[%clk 00:04:45]}
{[%emt 00:00:04]} 1-0

[Event "Goteborg Open 2024"]
[Site "Goteborgs Schackcentrum, Vegatan 20, Gothenburg, Sweden"]
[Date "2024.08.02"]
[Round "2.2"]
[White "Johansson, Stefan"]
[Black "Ask, Josef"]
[Result "0-1"]
[TimeControl "15 minutes + 5 seconds per move from move one (Round 1 - 4) / 90 minutes + 30 seconds per move from move one (Round 5 - 8)"]
[BlackTitle "FM"]
[WhiteFideId "1732242"]
[BlackFideId "1704583"]
[WhiteElo "1933"]
[BlackElo "2129"]

1. e4 {[%clk 00:15:08]} {[%emt 00:00:02]} c5 {[%clk 00:15:07]} {[%emt
00:00:02]} 2. Nf3 {[%clk 00:15:08]} {[%emt 00:00:05]} Nc6 {[%clk 00:15:10]}
{[%emt 00:00:02]} 3. b4 {[%clk 00:15:11]} {[%emt 00:00:03]} cxb4 {[%clk
00:15:09]} {[%emt 00:00:05]} 4. d4 {[%clk 00:15:12]} {[%emt 00:00:04]} d5
{[%clk 00:15:09]} {[%emt 00:00:04]} 5. exd5 {[%clk 00:15:14]} {[%emt 00:00:03]}
Qxd5 {[%clk 00:15:10]} {[%emt 00:00:03]} 6. c4 {[%clk 00:15:17]} {[%emt
00:00:02]} bxc3 {[%clk 00:15:09]} {[%emt 00:00:07]} 7. Nxc3 {[%clk 00:15:19]}
{[%emt 00:00:03]} Qa5 {[%clk 00:15:09]} {[%emt 00:00:06]} 8. Bd2 {[%clk
00:15:16]} {[%emt 00:00:07]} e6 {[%clk 00:14:40]} {[%emt 00:00:33]} 9. Be2
{[%clk 00:14:25]} {[%emt 00:00:56]} Bb4 {[%clk 00:14:24]} {[%emt 00:00:22]} 10.
Qb3 {[%clk 00:14:03]} {[%emt 00:00:28]} Nf6 {[%clk 00:14:00]} {[%emt 00:00:28]}
11. O-O {[%clk 00:14:02]} {[%emt 00:00:05]} O-O {[%clk 00:12:35]} {[%emt
00:01:31]} 12. a3 {[%clk 00:13:35]} {[%emt 00:00:31]} Be7 {[%clk 00:11:58]}
{[%emt 00:00:43]} 13. Rfd1 {[%clk 00:12:25]} {[%emt 00:01:14]} Qd8 {[%clk
00:10:46]} {[%emt 00:01:18]} 14. Bf4 {[%clk 00:10:47]} {[%emt 00:01:43]} Nd5
{[%clk 00:10:04]} {[%emt 00:00:47]} 15. Bg3 {[%clk 00:10:19]} {[%emt 00:00:33]}
Nxc3 {[%clk 00:09:14]} {[%emt 00:00:55]} 16. Qxc3 {[%clk 00:10:22]} {[%emt
00:00:02]} Qa5 {[%clk 00:08:38]} {[%emt 00:00:41]} 17. Qe3 {[%clk 00:10:07]}
{[%emt 00:00:20]} Bf6 {[%clk 00:08:14]} {[%emt 00:00:28]} 18. Rac1 {[%clk
00:09:54]} {[%emt 00:00:18]} Rd8 {[%clk 00:07:21]} {[%emt 00:00:59]} 19. Bd3
{[%clk 00:09:12]} {[%emt 00:00:47]} Qa4 {[%clk 00:05:36]} {[%emt 00:01:50]} 20.
Bc2 {[%clk 00:08:27]} {[%emt 00:00:49]} Qa5 {[%clk 00:04:58]} {[%emt 00:00:44]}
21. Qe4 {[%clk 00:08:07]} {[%emt 00:00:25]} g6 {[%clk 00:04:47]} {[%emt
00:00:15]} 22. Bb3 {[%clk 00:06:59]} {[%emt 00:01:14]} Qxa3 {[%clk 00:03:51]}
{[%emt 00:01:01]} 23. Rc3 {[%clk 00:06:18]} {[%emt 00:00:46]} Qb4 {[%clk
00:03:36]} {[%emt 00:00:21]} 24. Rcd3 {[%clk 00:06:17]} {[%emt 00:00:05]} a5
{[%clk 00:02:58]} {[%emt 00:00:44]} 25. d5 {[%clk 00:05:39]} {[%emt 00:00:42]}
Qxe4 {[%clk 00:02:57]} {[%emt 00:00:06]} 0-1

[Event "Goteborg Open 2024"]
[Site "Goteborgs Schackcentrum, Vegatan 20, Gothenburg, Sweden"]
[Date "2024.08.02"]
[Round "2.3"]
[White "Eriksson, Kristian"]
[Black "Borin, Jesper"]
[Result "1/2-1/2"]
[TimeControl "15 minutes + 5 seconds per move from move one (Round 1 - 4) / 90 minutes + 30 seconds per move from move one (Round 5 - 8)"]
[WhiteFideId "1705172"]
[BlackFideId "1771337"]
[WhiteElo "2064"]
[BlackElo "1905"]

1. d4 {[%clk 00:15:07]} {[%emt 00:00:02]} Nf6 {[%clk 00:15:08]} {[%emt
00:00:02]} 2. Nc3 {[%clk 00:15:10]} {[%emt 00:00:03]} d5 {[%clk 00:15:08]}
{[%emt 00:00:05]} 3. Bg5 {[%clk 00:15:12]} {[%emt 00:00:03]} Nbd7 {[%clk
00:14:59]} {[%emt 00:00:14]} 4. a3 {[%clk 00:15:12]} {[%emt 00:00:05]} h6
{[%clk 00:15:02]} {[%emt 00:00:02]} 5. Bh4 {[%clk 00:15:09]} {[%emt 00:00:08]}
e6 {[%clk 00:13:53]} {[%emt 00:01:14]} 6. Nf3 {[%clk 00:14:52]} {[%emt
00:00:21]} c5 {[%clk 00:13:55]} {[%emt 00:00:04]} 7. e3 {[%clk 00:14:52]}
{[%emt 00:00:04]} Be7 {[%clk 00:13:45]} {[%emt 00:00:15]} 8. Bd3 {[%clk
00:14:29]} {[%emt 00:00:29]} O-O {[%clk 00:13:34]} {[%emt 00:00:16]} 9. O-O
{[%clk 00:14:24]} {[%emt 00:00:10]} a6 {[%clk 00:12:19]} {[%emt 00:01:21]} 10.
Ne5 {[%clk 00:13:55]} {[%emt 00:00:32]} Nxe5 {[%clk 00:09:47]} {[%emt
00:02:38]} 11. dxe5 {[%clk 00:13:56]} {[%emt 00:00:03]} Nd7 {[%clk 00:09:22]}
{[%emt 00:00:32]} 12. Bxe7 {[%clk 00:13:52]} {[%emt 00:00:08]} Qxe7 {[%clk
00:09:26]} {[%emt 00:00:01]} 13. f4 {[%clk 00:13:27]} {[%emt 00:00:30]} b5
{[%clk 00:08:27]} {[%emt 00:01:05]} 14. Qh5 {[%clk 00:10:55]} {[%emt 00:02:36]}
c4 {[%clk 00:07:52]} {[%emt 00:00:40]} 15. Be2 {[%clk 00:10:47]} {[%emt
00:00:13]} Qc5 {[%clk 00:07:21]} {[%emt 00:00:36]} 16. Rf3 {[%clk 00:10:41]}
{[%emt 00:00:10]} d4 {[%clk 00:07:17]} {[%emt 00:00:09]} 17. exd4 {[%clk
00:09:38]} {[%emt 00:01:09]} Qxd4+ {[%clk 00:07:20]} {[%emt 00:00:02]} 18. Kh1
{[%clk 00:09:39]} {[%emt 00:00:03]} Bb7 {[%clk 00:07:17]} {[%emt 00:00:09]} 19.
Rg3 {[%clk 00:09:05]} {[%emt 00:00:39]} Qxf4 {[%clk 00:06:53]} {[%emt
00:00:29]} 20. Bf3 {[%clk 00:04:31]} {[%emt 00:04:39]} Bxf3 {[%clk 00:06:39]}
{[%emt 00:00:19]} 21. gxf3 {[%clk 00:04:33]} {[%emt 00:00:03]} Qxe5 {[%clk
00:06:36]} {[%emt 00:00:07]} 22. Qh4 {[%clk 00:04:01]} {[%emt 00:00:37]} Qf6
{[%clk 00:04:24]} {[%emt 00:02:19]} 23. Qh3 {[%clk 00:03:48]} {[%emt 00:00:17]}
Qf5 {[%clk 00:03:57]} {[%emt 00:00:32]} 24. Qh4 {[%clk 00:03:16]} {[%emt
00:00:37]} Qf6 {[%clk 00:03:54]} {[%emt 00:00:08]} 25. Qh3 {[%clk 00:03:15]}
{[%emt 00:00:06]} Qf5 {[%clk 00:03:58]} {[%emt 00:00:02]} 26. Qh4 {[%clk
00:03:18]} {[%emt 00:00:01]} Qf6 {[%clk 00:03:49]} {[%emt 00:00:14]} 1/2-1/2

[Event "Goteborg Open 2024"]
[Site "Goteborgs Schackcentrum, Vegatan 20, Gothenburg, Sweden"]
[Date "2024.08.02"]
[Round "2.4"]
[White "Karlsson, Stefan"]
[Black "Ottgard, Andreas"]
[Result "1/2-1/2"]
[TimeControl "15 minutes + 5 seconds per move from move one (Round 1 - 4) / 90 minutes + 30 seconds per move from move one (Round 5 - 8)"]
[WhiteFideId "1771183"]
[BlackFideId "1730592"]
[WhiteElo "2042"]
[BlackElo "1900"]

1. e4 {[%clk 00:15:08]} d6 {[%clk 00:15:09]} {[%emt 00:00:03]} 2. d4 {[%clk
00:15:11]} {[%emt 00:00:01]} Nf6 {[%clk 00:15:13]} {[%emt 00:00:01]} 3. Nc3
{[%clk 00:15:14]} {[%emt 00:00:01]} g6 {[%clk 00:15:17]} {[%emt 00:00:01]} 4.
Be3 {[%clk 00:15:18]} {[%emt 00:00:02]} c6 {[%clk 00:15:20]} {[%emt 00:00:02]}
5. Qd2 {[%clk 00:15:20]} {[%emt 00:00:03]} b5 {[%clk 00:15:19]} {[%emt
00:00:05]} 6. Bd3 {[%clk 00:14:55]} {[%emt 00:00:29]} Nbd7 {[%clk 00:14:52]}
{[%emt 00:00:34]} 7. Nf3 {[%clk 00:14:57]} {[%emt 00:00:03]} Qc7 {[%clk
00:13:52]} {[%emt 00:01:05]} 8. O-O {[%clk 00:13:17]} {[%emt 00:01:44]} Bg7
{[%clk 00:13:35]} {[%emt 00:00:22]} 9. Bh6 {[%clk 00:11:25]} {[%emt 00:01:56]}
O-O {[%clk 00:13:35]} {[%emt 00:00:06]} 10. Rfe1 {[%clk 00:10:39]} {[%emt
00:00:51]} b4 {[%clk 00:11:31]} {[%emt 00:02:08]} 11. Na4 {[%clk 00:08:18]}
{[%emt 00:02:27]} a5 {[%clk 00:11:15]} {[%emt 00:00:22]} 12. Bxg7 {[%clk
00:07:59]} {[%emt 00:00:23]} Kxg7 {[%clk 00:11:16]} {[%emt 00:00:03]} 13. e5
{[%clk 00:07:37]} {[%emt 00:00:28]} Nd5 {[%clk 00:06:19]} {[%emt 00:05:03]} 14.
a3 {[%clk 00:03:45]} {[%emt 00:03:57]} Ba6 {[%clk 00:04:28]} {[%emt 00:01:56]}
15. Be4 {[%clk 00:02:33]} {[%emt 00:01:16]} N7b6 {[%clk 00:03:21]} {[%emt
00:01:12]} 16. Nxb6 {[%clk 00:02:16]} {[%emt 00:00:22]} Nxb6 {[%clk 00:03:19]}
{[%emt 00:00:07]} 17. axb4 {[%clk 00:02:05]} {[%emt 00:00:17]} Nc4 {[%clk
00:03:03]} {[%emt 00:00:21]} 18. Qf4 {[%clk 00:01:34]} {[%emt 00:00:35]} axb4
{[%clk 00:02:49]} {[%emt 00:00:19]} 19. b3 {[%clk 00:01:09]} {[%emt 00:00:30]}
Nb6 {[%clk 00:02:43]} {[%emt 00:00:11]} 20. Qd2 {[%clk 00:00:57]} {[%emt
00:00:17]} d5 {[%clk 00:02:17]} {[%emt 00:00:32]} 21. Bd3 {[%clk 00:00:51]}
{[%emt 00:00:11]} Bxd3 {[%clk 00:02:21]} {[%emt 00:00:02]} 22. cxd3 {[%clk
00:00:41]} {[%emt 00:00:14]} Rfb8 {[%clk 00:01:28]} {[%emt 00:00:58]} 23. Qxb4
{[%clk 00:00:29]} {[%emt 00:00:17]} Nc4 {[%clk 00:01:01]} {[%emt 00:00:32]} 24.
Qc3 {[%clk 00:00:25]} {[%emt 00:00:08]} Na3 {[%clk 00:00:58]} {[%emt 00:00:09]}
25. Rec1 {[%clk 00:00:19]} {[%emt 00:00:09]} Rb6 {[%clk 00:00:35]} {[%emt
00:00:29]} 26. Qc5 {[%clk 00:00:13]} {[%emt 00:00:12]} Rxb3 {[%clk 00:00:33]}
{[%emt 00:00:07]} 27. Qxc6 {[%clk 00:00:10]} {[%emt 00:00:08]} Qxc6 {[%clk
00:00:35]} {[%emt 00:00:03]} 28. Rxc6 {[%clk 00:00:15]} Rxd3 {[%clk 00:00:35]}
{[%emt 00:00:05]} 29. Ne1 {[%clk 00:00:11]} {[%emt 00:00:10]} Rxd4 {[%clk
00:00:17]} {[%emt 00:00:22]} 30. Rc3 {[%clk 00:00:06]} {[%emt 00:00:10]} Rda4
{[%clk 00:00:20]} {[%emt 00:00:01]} 31. Kf1 {[%clk 00:00:06]} {[%emt 00:00:06]}
Nc4 {[%clk 00:00:16]} {[%emt 00:00:08]} 32. Rxa4 {[%clk 00:00:10]} {[%emt
00:00:02]} Rxa4 {[%clk 00:00:21]} {[%emt 00:00:01]} 33. Ke2 {[%clk 00:00:12]}
{[%emt 00:00:02]} Ra2+ {[%clk 00:00:18]} {[%emt 00:00:08]} 34. Kf3 {[%clk
00:00:10]} {[%emt 00:00:07]} f6 {[%clk 00:00:17]} {[%emt 00:00:06]} 35. exf6+
{[%clk 00:00:12]} {[%emt 00:00:03]} Kxf6 {[%clk 00:00:20]} {[%emt 00:00:02]} 36.
Nd3 {[%clk 00:00:14]} {[%emt 00:00:03]} e5 {[%clk 00:00:17]} {[%emt 00:00:07]}
37. Nb4 {[%clk 00:00:15]} {[%emt 00:00:03]} e4+ {[%clk 00:00:09]} {[%emt
00:00:13]} 38. Kf4 {[%clk 00:00:15]} {[%emt 00:00:05]} Rxf2+ {[%clk 00:00:10]}
{[%emt 00:00:05]} 39. Kg3 {[%clk 00:00:15]} {[%emt 00:00:06]} Rd2 {[%clk
00:00:10]} {[%emt 00:00:04]} 40. Nxd5+ {[%clk 00:00:17]} {[%emt 00:00:03]} Rxd5
{[%clk 00:00:11]} {[%emt 00:00:05]} 41. Rxc4 {[%clk 00:00:21]} Kf5 {[%clk
00:00:09]} {[%emt 00:00:06]} 42. Rc7 {[%clk 00:00:20]} {[%emt 00:00:06]} h5
{[%clk 00:00:09]} {[%emt 00:00:05]} 43. Rf7+ {[%clk 00:00:23]} {[%emt
00:00:02]} Ke5 {[%clk 00:00:11]} {[%emt 00:00:03]} 44. Re7+ {[%clk 00:00:15]}
{[%emt 00:00:14]} Kf5 {[%clk 00:00:14]} {[%emt 00:00:03]} 45. Rf7+ {[%clk
00:00:18]} {[%emt 00:00:01]} Kg5 {[%clk 00:00:11]} {[%emt 00:00:07]} 46. h4+
{[%clk 00:00:13]} {[%emt 00:00:11]} Kh6 {[%clk 00:00:14]} {[%emt 00:00:02]} 47.
Re7 {[%clk 00:00:08]} {[%emt 00:00:09]} Rd4 {[%clk 00:00:15]} {[%emt 00:00:05]}
48. Kf4 {[%clk 00:00:07]} {[%emt 00:00:05]} 1/2-1/2